lending/lending_fUSD_20240830
["ID","MTS","AMOUNT","RATE_DAILY","PERIOD"]
[336674027,1725007841191,-3009.69,0.00024657,4]
[336674028,1725007841200,-258.34524707,0.00024657,4]
[336674029,1725007841209,-3009.69,0.00024657,4]
[336674030,1725007841219,-3009.69,0.00024657,4]
[336674031,1725007841228,-3009.69,0.00024657,4]
[336674032,1725007841238,-3009.69,0.00024657,4]
[336674033,1725007841248,-3009.69,0.00024657,4]
[336674034,1725007841257,-3009.69,0.00024657,4]
[336674035,1725007841267,-452.27137618,0.00024657,4]
[336674036,1725007841277,-500.0,0.00024657,4]
[336674037,1725007841286,-500.0,0.00024657,4]
[336674038,1725007841296,-500.0,0.00024657,4]
[336674039,1725007841305,-500.0,0.00024657,4]
[336674040,1725007841314,-414.91,0.00024657,4]
[336674041,1725007841324,-197.88447662,0.00024657,4]
[336674042,1725007841334,-2948.65,0.00024657,4]
[336674043,1725007841343,-2948.65,0.00024657,4]
[336674044,1725007841353,-2948.65,0.00024657,4]
[336674045,1725007841362,-2948.65,0.00024657,4]
[336674046,1725007841372,-2948.65,0.00024657,4]
[336674047,1725007841381,-2948.65,0.00024657,4]
[336674048,1725007841390,-1572.42674469,0.00024657,4]
[336674049,1725007841411,-1376.22325531,0.00024657,4]
[336674050,1725007841421,-507.70110962,0.00024657,4]
[336674051,1725007841432,-573.37954002,0.00024657,4]
[336674052,1725007841444,-635.20510333,0.00024657,4]
[336674053,1725007841456,-688.15196471,0.00024657,4]
[336674054,1725007841467,-451.80228232,0.00024657,4]
[336674055,1725007841476,-2856.24,0.00024657,4]
[336674056,1725007841486,-2856.24,0.00024657,4]
[336674057,1725007841496,-2856.24,0.00024657,4]
[336674058,1725007841505,-1379.47771768,0.00024657,4]
[336674059,1725007841518,-288.54346394,0.00024657,4]
[336674068,1725007843160,-331.97,0.00022805,30]
[336674069,1725007843169,-734.35182804,0.00024657,4]
[336674070,1725007843181,-453.86699034,0.00024657,4]
[336674071,1725007843190,-2856.24,0.00024657,4]
[336674072,1725007843200,-2856.24,0.00024657,4]
[336674073,1725007843209,-2639.64,0.00024657,4]
[336674074,1725007843218,-223.49300966,0.00024657,4]
[336674075,1725007843230,-2416.14699034,0.00024657,4]
[336674076,1725007843243,-238.49704719,0.00024657,4]
[336674077,1725007843256,-2401.14295281,0.00024657,4]
[336674078,1725007843270,-2639.64,0.00024657,4]
[336674079,1725007843279,-1771.12617591,0.00024657,4]
[336674080,1725007843297,-250.69,0.00024657,4]
[336674151,1725007845164,-617.82382409,0.00024657,4]
[336674153,1725007845175,-457.46241889,0.00024657,4]
[336674156,1725007845189,-2182.17758111,0.00024657,4]
[336674158,1725007845200,-2639.64,0.00024657,4]
[336674160,1725007845211,-500.0,0.00024657,4]
[336674162,1725007845222,-500.0,0.00024657,4]
[336674164,1725007845232,-534.61908457,0.00024657,4]
[336674166,1725007845244,-500.0,0.00024657,4]
[336674168,1725007845254,-501.19136224,0.00024657,4]
[336674170,1725007845266,-94.52580692,0.00024657,4]
[336674172,1725007845280,-94.42899608,0.00024657,4]
[336674174,1725007845292,-188.954803,0.00024657,4]
[336674176,1725007845302,-165.85820092,0.00024657,4]
[336674179,1725007845320,-334.14179908,0.00024657,4]
[336674180,1725007845331,-500.0,0.00024657,4]
[336674181,1725007845341,-500.0,0.00024657,4]
[336674182,1725007845351,-500.0,0.00024657,4]
[336674183,1725007845361,-500.0,0.00024657,4]
[336674184,1725007845375,-500.0,0.00024657,4]
[336674185,1725007845386,-172.562813,0.00024657,4]
[336674186,1725007845396,-509.12795369,0.00024657,4]
[336674187,1725007845407,-172.562813,0.00024657,4]
[336674188,1725007845417,-172.562813,0.00024657,4]
[336674189,1725007845427,-172.562813,0.00024657,4]
[336674190,1725007845438,-304.21977,0.00024657,4]
[336674191,1725007845449,-500.0,0.00024657,4]
[336674192,1725007845459,-500.0,0.00024657,4]
[336674193,1725007845470,-500.0,0.00024657,4]
[336674194,1725007845481,-500.0,0.00024657,4]
[336674195,1725007845495,-500.0,0.00024657,4]
[336674196,1725007845506,-500.0,0.00024657,4]
[336674197,1725007845517,-500.0,0.00024657,4]
[336674198,1725007845528,-500.0,0.00024657,4]
[336674199,1725007845539,-554.86,0.00024657,4]
[336674200,1725007845550,-11029.10497451,0.00024657,4]
[336674201,1725007845866,-435.35502549,0.00024657,4]
[336674202,1725007845880,-500.0,0.00024657,4]
[336674203,1725007845890,-500.0,0.00024657,4]
[336674204,1725007845899,-150.23064936,0.00024657,4]
[336674205,1725007845909,-23500.99,0.00024657,4]
[336674206,1725007845919,-500.0,0.00024657,4]
[336674207,1725007845928,-500.0,0.00024657,4]
[336674208,1725007845938,-500.0,0.00024657,4]
[336674209,1725007845947,-179.66315905,0.00024657,4]
[336674210,1725007845959,-320.33684095,0.00024657,4]
[336674211,1725007845968,-500.0,0.00024657,4]
[336674212,1725007845978,-317.6,0.00024657,4]
[336674213,1725007845988,-500.0,0.00024657,4]
[336674214,1725007845997,-500.0,0.00024657,4]
[336674215,1725007846007,-442.35025641,0.00024657,4]
[336674216,1725007846019,-57.64974359,0.00024657,4]
[336674217,1725007846028,-500.0,0.00024657,4]
[336674218,1725007846037,-500.0,0.00024657,4]
[336674219,1725007846047,-86.32917819,0.00024657,4]
[336674220,1725007846058,-413.67082181,0.00024657,4]
[336674221,1725007846073,-14769.42279301,0.00024657,4]
[336674222,1725007846084,-1394.51005659,0.00024657,4]
[336674223,1725007846096,-517.49928082,0.00024657,4]
[336674224,1725007846110,-1165.26786958,0.00024657,4]
[336674225,1725007846121,-500.0,0.00024657,4]
[336674226,1725007846130,-500.0,0.00024657,4]
[336674227,1725007846141,-500.0,0.00024657,4]
[336674228,1725007846150,-500.0,0.00024657,4]
[336674229,1725007846159,-500.0,0.00024657,4]
[336674230,1725007846169,-500.0,0.00024657,4]
[336674231,1725007846180,-500.0,0.00024657,4]
[336674232,1725007846189,-157.26951369,0.00024657,4]
[336674233,1725007846203,-342.73048631,0.00024657,4]
[336674234,1725007846213,-156.118422,0.00024657,4]
[336674235,1725007846223,-411.22235169,0.00024657,4]
[336674236,1725007846239,-88.77764831,0.00024657,4]
[336674237,1725007846248,-500.0,0.00024657,4]
[336674238,1725007846258,-152.56369,0.00024657,4]
[336674239,1725007846267,-152.56369,0.00024657,4]
[336674240,1725007846276,-152.56369,0.00024657,4]
[336674241,1725007846285,-152.56369,0.00024657,4]
[336674242,1725007846294,-310.08210518,0.00024657,4]
[336674243,1725007846310,-189.91789482,0.00024657,4]
[336674244,1725007846320,-152.261305,0.00024657,4]
[336674245,1725007846329,-152.261305,0.00024657,4]
[336674246,1725007846339,-16.98179518,0.00024657,4]
[336674247,1725007846350,-135.27950982,0.00024657,4]
[336674248,1725007846360,-152.261305,0.00024657,4]
[336674249,1725007846369,-152.261305,0.00024657,4]
[336674250,1725007846380,-500.0,0.00024657,4]
[336674251,1725007846389,-951.29667649,0.00024657,4]
[336674252,1725007846402,-572.85,0.00024657,4]
[336674253,1725007846415,-1211.84475513,0.00024657,4]
[336674254,1725007846427,-2522.7804,0.00024657,4]
[336674255,1725007846440,-4610.71360311,0.00024657,4]
[336674256,1725007846452,-287.716,0.00024657,4]
[336674257,1725007846463,-269.38241397,0.00024657,4]
[336674258,1725007846475,-1278.1261513,0.00024657,4]
[336674259,1725007846485,-500.0,0.00024657,4]
[336674260,1725007846495,-6117.06372578,0.00024657,4]
[336674264,1725008137612,173.63,0.00010959,2]
[336674265,1725008226848,311.6810656,0.00011,2]
[336674270,1725009032303,-506.79,0.000111,2]
[336674272,1725009032313,-716.41287549,0.000188,2]
[336674273,1725009032322,-27.78519389,0.000189,7]
[336674276,1725009032334,-1154.74480611,0.000189,7]
[336674278,1725009032345,-157.56,0.00019344,2]
[336674280,1725009032354,-300.0,0.00019725,2]
[336674281,1725009032363,-759.97519389,0.0002,2]
[336674283,1725009032375,-505.43097376,0.0002,2]
[336674286,1725009032390,-96.87317535,0.0002,2]
[336674288,1725009032399,-4039.05584188,0.0002,7]
[336674290,1725009032408,-150.99,0.00020134,2]
[336674292,1725009032424,-499.99,0.00020134,2]
[336674293,1725009032433,-723.05,0.00020134,2]
[336674294,1725009032442,-420.0,0.00021484,2]
[336674295,1725009032451,-500.0,0.0002174,2]
[336674296,1725009032462,-152.06,0.00021918,2]
[336674297,1725009032471,-2375.91910087,0.00021934,2]
[336674309,1725009038112,-11491.499373,0.00021934,2]
[336674310,1725009038170,-10032.58152613,0.00021934,2]
[336674311,1725009038179,-160.09,0.00022008,2]
[336674312,1725009038189,-250.0,0.00022067,2]
[336674313,1725009038199,-864.31,0.00022098,2]
[336674314,1725009038209,-250.0,0.00022101,2]
[336674315,1725009038219,-172.47,0.00022107,2]
[336674316,1725009038228,-250.0,0.00022135,2]
[336674317,1725009038238,-308.25,0.0002215,30]
[336674318,1725009038248,-296.37,0.00022228,2]
[336674319,1725009038259,-200.0,0.00022266,2]
[336674320,1725009038269,-723.05,0.00022398,2]
[336674321,1725009038279,-150.0,0.00022414,2]
[336674322,1725009038290,-327.6,0.00022421,2]
[336674323,1725009038301,-1994.19,0.00022594,62]
[336674324,1725009038310,-200.0,0.00022635,2]
[336674325,1725009038320,-672.4,0.00023312,2]
[336674326,1725009038330,-173.39,0.00023348,2]
[336674327,1725009038339,-587.0,0.00023401,2]
[336674328,1725009038349,-1013.59,0.000242,14]
[336674329,1725009038359,-180.0,0.00024272,2]
[336674330,1725009038368,-6742.2283,0.00024547,2]
[336674331,1725009038378,-320.11552106,0.00024554,2]
[336674332,1725009038387,-170.801,0.00024554,2]
[336674333,1725009038397,-12395.75499659,0.00024557,2]
[336674334,1725009038409,-1018.81330539,0.00024557,2]
[336674335,1725009038426,-1474.53373127,0.00024557,2]
[336674336,1725009038441,-998.93516901,0.00024557,2]
[336674337,1725009038452,-942.82658383,0.00024557,2]
[336674408,1725009040153,-2809.89847193,0.00024557,2]
[336674409,1725009040165,-292.65825307,0.00024557,2]
[336674410,1725009040176,-279.65999996,0.00024557,2]
[336674411,1725009040210,-604.46,0.00024557,2]
[336674412,1725009040273,-453.16590618,0.00024557,2]
[336674413,1725009040284,-505.3046845,0.00024557,2]
[336674414,1725009040331,-320.42439827,0.00024557,2]
[336674415,1725009040341,-590.5163,0.00024557,2]
[336674416,1725009040352,-4723.955,0.00024557,2]
[336674417,1725009040361,-274.76679836,0.00024557,2]
[336674418,1725009040371,-320.11552104,0.00024585,2]
[336674419,1725009040380,-320.11552104,0.00024615,2]
[336674420,1725009040390,-28860.59698709,0.00024641,7]
[336674423,1725009040401,-355330.21513999,0.00024641,7]
[336674425,1725009040417,-1009.71667059,0.00024641,7]
[336674427,1725009040428,-413.7332465,0.00024641,7]
[336674429,1725009040441,-1058.18044309,0.00024641,7]
[336674432,1725009040452,-4170.03465609,0.00024641,7]
[336674434,1725009040464,-3015.8399,0.00024641,7]
[336674436,1725009040476,-3628.02515621,0.00024641,7]
[336674445,1725009043175,-11876.33293888,0.00024641,7]
[336674446,1725009043341,-742.5,0.00024641,7]
[336674463,1725009049699,-6450.9728,0.00024641,7]
[336674464,1725009049711,-6451.07353083,0.00024641,7]
[336674465,1725009049740,2406.2824,0.00011,2]
[336674473,1725009273056,162.22,0.00010959,2]
[336674474,1725009330633,500.0,0.00024,120]
[336674475,1725009384509,332.3,0.00024,120]
[336674476,1725009529810,763.41,0.00024,120]
[336674478,1725009757316,156.83,0.00010959,2]
[336674481,1725009908418,30812.9865344,0.00011,2]
[336674482,1725009929868,2070.66823379,0.000101,2]
[336674483,1725009954652,1231.43706999,0.00010399,2]
[336674486,1725010081172,4010.54650981,0.0001,2]
[336674488,1725010113504,6274.18202339,0.0001,2]
[336674489,1725010115426,632.53412832,0.00010899,2]
[336674515,1725010232133,-150.0,0.00010998,2]
[336674516,1725010232143,-810.92161359,0.00010999,2]
[336674517,1725010232156,-482.77585744,0.00010999,2]
[336674518,1725010232195,-300.0,0.00010999,2]
[336674519,1725010232259,-963.29314125,0.00010999,2]
[336674520,1725010232378,-814.99724662,0.00010999,2]
[336674521,1725010232390,-1335.27392991,0.00010999,2]
[336674522,1725010232402,-879.94599502,0.00010999,2]
[336674523,1725010232414,-1706.98,0.00010999,2]
[336674524,1725010232425,-1196.32788,0.00010999,2]
[336675092,1725010238300,-4439.54703849,0.00010999,2]
[336675094,1725010238313,-667.76472037,0.00010999,2]
[336675097,1725010238324,-326.82220256,0.00010999,2]
[336675099,1725010238337,-564.662132,0.00010999,2]
[336675101,1725010238349,-503.8190057,0.00010999,2]
[336675103,1725010238360,-918.24937064,0.00010999,2]
[336675105,1725010238371,-1470.87908501,0.00010999,2]
[336675108,1725010238382,-394.12782113,0.00010999,2]
[336675110,1725010238394,-479.11568286,0.00010999,2]
[336675112,1725010238405,-9571.39362899,0.00010999,2]
[336675114,1725010238416,-1357.43390719,0.00010999,2]
[336675116,1725010238427,-2248.25259335,0.00010999,2]
[336675118,1725010238438,-8284.18896675,0.00010999,2]
[336675124,1725010238486,-3212.85344129,0.00010999,2]
[336675126,1725010238498,-13816.91598433,0.00010999,2]
[336675129,1725010238509,-448.7075297,0.00010999,2]
[336675131,1725010238520,-1173.98706814,0.00010999,2]
[336675133,1725010238532,-3351.12782822,0.00010999,2]
[336675135,1725010238542,-3677.70180772,0.00010999,2]
[336675137,1725010238554,-8928.78405659,0.00010999,2]
[336675139,1725010238566,-3006.44051846,0.00010999,2]
[336675141,1725010238577,-7442.804616,0.00010999,2]
[336675144,1725010238588,-2107.96685003,0.00010999,2]
[336675146,1725010238599,-585.41820824,0.00010999,2]
[336675148,1725010238614,-1262.14798967,0.00010999,2]
[336675150,1725010238625,-320.14774039,0.00010999,2]
[336675156,1725010238675,-9740.31597778,0.00010999,2]
[336675158,1725010238685,-601.863712,0.00010999,7]
[336675160,1725010238694,-11437.03967849,0.00011,2]
[336675239,1725010240209,-3029.01059716,0.00011,2]
[336675241,1725010240221,-116856.72181398,0.00011,2]
[336675248,1725010240275,-2495.58714316,0.00011,2]
[336675250,1725010240286,-1335.0,0.00011,2]
[336675256,1725010240336,-278.90148228,0.00011,2]
[336675263,1725010240399,-288.82,0.00011,2]
[336675269,1725010240464,-311.6,0.00011,2]
[336675272,1725010240476,-1190.06229477,0.00011,2]
[336675274,1725010240487,-695.95800116,0.00011,2]
[336675279,1725010240529,-26988.18765667,0.00011,2]
[336675281,1725010240538,-255.0,0.000111,2]
[336675284,1725010240558,-150.0,0.000111,2]
[336675287,1725010240570,-500.0,0.000125,2]
[336675288,1725010240580,-500.0,0.000125,2]
[336675289,1725010240589,-195.77468494,0.000125,2]
[336675290,1725010240599,-1000.0,0.00013048,2]
[336675291,1725010240609,-1506.74891548,0.00013946,2]
[336675292,1725010240618,-166457.66026505,0.00014,6]
[336675293,1725010240631,-1555.74041912,0.00014,6]
[336675294,1725010240641,-1886.0,0.000167,3]
[336675295,1725010240651,-499.99,0.0001726,2]
[336675297,1725010240661,-2297.11176,0.0001739,2]
[336675299,1725010240671,-236.51,0.000189,7]
[336675301,1725010240680,-2297.11177,0.0001989,2]
[336675303,1725010240690,-150.0,0.0002,2]
[336675305,1725010240699,-150.99,0.0002,2]
[336675307,1725010240710,-150.99,0.0002,2]
[336675309,1725010240719,-2740.01517898,0.0002,7]
[336675311,1725010240729,-162.95327982,0.0002,30]
[336675313,1725010240739,-14718.32067427,0.0002,15]
[336675315,1725010240748,-733.56,0.00020342,2]
[336675317,1725010240762,-737.92,0.00020649,2]
[336675319,1725010240772,-200.0,0.00020844,2]
[336675321,1725010240782,-168.45,0.00020844,2]
[336675323,1725010240792,-200.0,0.0002094,2]
[336675325,1725010240803,-4596.058261,0.00021,7]
[336675327,1725010240812,-250.0,0.00021109,2]
[336675329,1725010240822,-250.0,0.00021304,2]
[336675331,1725010240833,-7894.06455327,0.00022,15]
[336675333,1725010240844,-152.06,0.00022136,2]
[336675335,1725010240854,-621.57,0.00022247,2]
[336675337,1725010240864,-286.23,0.00022249,30]
[336675339,1725010240874,-2297.11176,0.0002239,2]
[336675341,1725010240884,-13171.63043967,0.0002257,2]
[336675344,1725010240896,-10728.36956033,0.0002257,2]
[336675346,1725010240906,-733.56,0.00022606,2]
[336675348,1725010240915,-250.0,0.00022688,2]
[336675350,1725010240924,-246.97,0.00022752,2]
[336675352,1725010240934,-262.08,0.00022869,2]
[336675354,1725010240943,-737.92,0.0002323,2]
[336675356,1725010240953,-156.83,0.00023562,2]
[336675358,1725010240963,-360.0,0.00023594,2]
[336675359,1725010240972,-3685.22,0.00023732,2]
[336675362,1725010240982,-494.10166856,0.000238,5]
[336675364,1725010240992,-500.0,0.00024,11]
[336675366,1725010241002,-751.37170063,0.00024,2]
[336675368,1725010241011,-289.23,0.000242,14]
[336675370,1725010241021,-182.09092873,0.0002421,2]
[336675372,1725010241030,-500.0,0.00024373,2]
[336675374,1725010241039,-216.2722549,0.0002438,2]
[336675376,1725010241049,-391.88821597,0.0002439,2]
[336675378,1725010241058,-3239.37347888,0.0002439,3]
[336675380,1725010241068,-1160.61189221,0.0002439,2]
[336675382,1725010241077,-748.78054858,0.00024397,2]
[336675384,1725010241088,-500.0,0.00024399,2]
[336675386,1725010241099,-500.0,0.00024399,2]
[336675388,1725010241109,-500.0,0.00024399,2]
[336675390,1725010241119,-466.19870685,0.00024399,2]
[336675392,1725010241130,-15117.41563114,0.000244,11]
[336675619,1725010243246,-6443.66564745,0.000244,11]
[336675621,1725010243258,-529.60407928,0.000244,11]
[336675628,1725010243308,-603.69983745,0.000244,11]
[336675630,1725010243319,-636.87818,0.000244,11]
[336675632,1725010243332,-488.25030199,0.000244,11]
[336675634,1725010243344,-14265.34945311,0.000244,11]
[336675637,1725010243356,-4976.24384087,0.000244,11]
[336675695,1725010243968,-397.66172814,0.000244,11]
[336675697,1725010243979,-206541.23130057,0.000244,11]
[336675699,1725010243989,-42111.8552254,0.0002447,3]
[336675701,1725010243999,-1160.61189221,0.0002447,2]
[336675703,1725010244008,-500.79506748,0.00024473,2]
[336675705,1725010244018,-400.38227572,0.00024473,2]
[336675707,1725010244027,-600.0,0.00024473,2]
[336675709,1725010244036,-748.78054858,0.00024477,2]
[336675711,1725010244046,-1981.48,0.00024479,2]
[336675713,1725010244056,-321064.86369004,0.0002448,15]
[336675715,1725010244067,-2396.5336603,0.0002448,15]
[336675718,1725010244079,-12611.58875453,0.0002448,15]
[336675720,1725010244090,-1806.49803386,0.0002448,15]
[336675722,1725010244102,-26400.76463366,0.0002448,15]
[336675724,1725010244114,-157013.55392507,0.0002448,15]
[336675737,1725010244222,-343.69288208,0.0002448,15]
[336675739,1725010244233,-1122.81021144,0.0002448,15]
[336675741,1725010244249,-1326.30959715,0.0002448,15]
[336675744,1725010244260,-392.29490377,0.0002448,15]
[336675746,1725010244272,-461.72228719,0.0002448,15]
[336675748,1725010244283,-305.20127118,0.0002448,15]
[336675750,1725010244294,-632.89077326,0.0002448,15]
[336675752,1725010244305,-21220.78577,0.0002448,15]
[336675755,1725010244316,-34626.799998,0.0002448,15]
[336675757,1725010244332,-482.00237009,0.0002448,15]
[336675759,1725010244343,-2320.0,0.0002448,15]
[336675762,1725010244354,-463.17857171,0.0002448,15]
[336675764,1725010244365,-700.1734372,0.0002448,15]
[336675766,1725010244375,-261.4769987,0.0002448,15]
[336675847,1725010246576,-1000.18527722,0.0002448,15]
[336675848,1725010246587,-344.831931,0.0002448,15]
[336675849,1725010246598,-291.09122005,0.0002448,15]
[336675850,1725010246610,-470.61999998,0.0002448,15]
[336675851,1725010246621,-5891.39520654,0.0002448,15]
[336675852,1725010246634,-281.818872,0.0002448,15]
[336675853,1725010246647,-551.89411304,0.0002448,15]
[336675854,1725010246658,-4776.59933758,0.0002448,15]
[336675855,1725010246670,-264.208,0.0002448,15]
[336675856,1725010246682,-300.0,0.0002448,15]
[336675857,1725010246694,-419.49964303,0.0002448,15]
[336675858,1725010246706,-3871.59662795,0.0002448,15]
[336675859,1725010246718,-389.63124367,0.0002448,15]
[336675860,1725010246729,-3358.77699819,0.0002448,15]
[336675862,1725010260243,15190.0488,0.00010899,2]
[336675865,1725010766081,166.8,0.00010959,2]
[336675866,1725011180460,1534.38792582,0.000109,2]
[336675868,1725011351059,173.63,0.00010959,2]
[336675878,1725011432294,-250.0,0.00012,2]
[336675879,1725011432306,-303.3037382,0.00012,2]
[336675880,1725011432315,-300.0,0.00014,2]
[336675881,1725011432324,-350.0,0.00016,2]
[336675882,1725011432333,-648.0,0.000164,3]
[336675883,1725011432342,-400.0,0.00018,2]
[336675884,1725011432351,-450.0,0.0002,2]
[336675885,1725011432360,-499.99,0.00020493,2]
[336675886,1725011432370,-1075.45,0.00020493,2]
[336675887,1725011432379,-2354.23,0.00020493,2]
[336675888,1725011432388,-396.29,0.00020493,2]
[336675889,1725011432397,-150.0,0.00020493,2]
[336675890,1725011432406,-741.02,0.00020533,2]
[336675891,1725011432415,-269.15028106,0.00020533,2]
[336675892,1725011432432,-2171.33971894,0.00020533,2]
[336675893,1725011432441,-940.14069009,0.00022,2]
[336675894,1725011432451,-175.0,0.00022,2]
[336675895,1725011432460,-3000.0,0.000222,2]
[336675896,1725011432474,-152.06,0.00022234,2]
[336675897,1725011432483,-250.0,0.00022248,2]
[336675898,1725011432492,-168.24,0.00022262,2]
[336675899,1725011432501,-250.0,0.00022269,2]
[336675900,1725011432510,-150.0,0.00022322,2]
[336675901,1725011432520,-520.11907664,0.00022323,2]
[336675902,1725011432530,-845.87545876,0.00022323,2]
[336675903,1725011432542,-1028.79,0.00022323,2]
[336675904,1725011432553,-555.249,0.00022323,2]
[336675905,1725011432564,-406.46096392,0.00022323,2]
[336675906,1725011432575,-20543.50550068,0.00022323,2]
[336675907,1725011432584,-500.2,0.0002234,2]
[336675908,1725011432593,-442.76,0.000224,2]
[336675909,1725011432602,-205.8,0.00022472,2]
[336675910,1725011432612,-400.0,0.00022481,2]
[336675911,1725011432622,-265.78,0.00022514,30]
[336675912,1725011432631,-557.24,0.00022597,2]
[336675913,1725011432641,-167.748,0.00022597,2]
[336675914,1725011432651,-168.24,0.00022738,2]
[336675915,1725011432661,-741.02,0.00022797,2]
[336675916,1725011432671,-247.06014866,0.00022999,2]
[336675917,1725011432680,-11014.88216229,0.00023,2]
[336675920,1725011432692,-752.17210597,0.00023,2]
[336675922,1725011432703,-20801.93928886,0.00023,2]
[336675924,1725011432715,-2809.2987252,0.00023,2]
[336675926,1725011432729,-1184.24886143,0.00023,2]
[336675928,1725011432740,-368.7704374,0.00023,2]
[336675930,1725011432751,-298.00364126,0.00023,2]
[336675933,1725011432763,-4507.06363913,0.00023,2]
[336675934,1725011432774,-1249.78872132,0.00023,2]
[336675935,1725011432785,-3186.53480063,0.00023,2]
[336675936,1725011432796,-6036.6456329,0.00023,2]
[336675937,1725011432808,-404.0,0.00023,2]
[336675938,1725011432819,-1692.49335465,0.00023,2]
[336675939,1725011432828,-200.0,0.00023,2]
[336675940,1725011432838,-200.0,0.00023,2]
[336675941,1725011432847,-200.0,0.00023,2]
[336675942,1725011432856,-178.34,0.00023046,2]
[336675943,1725011432866,-229.16664535,0.00023553,2]
[336675944,1725011432877,-395.79335465,0.00023553,2]
[336675945,1725011432886,-624.96,0.0002356,2]
[336675946,1725011432896,-624.96,0.00023566,2]
[336675947,1725011432905,-624.96,0.00023572,2]
[336675948,1725011432914,-624.96,0.00023578,2]
[336675949,1725011432924,-624.96,0.00023584,2]
[336675950,1725011432933,-624.96,0.00023591,2]
[336675951,1725011432942,-624.96,0.00023597,2]
[336675952,1725011432951,-1016.0,0.000236,5]
[336675953,1725011432960,-624.96,0.00023603,2]
[336675954,1725011432970,-624.96,0.00023609,2]
[336675955,1725011432979,-624.96,0.00023615,2]
[336675956,1725011432988,-624.96,0.00023622,2]
[336675957,1725011432997,-624.96,0.00023628,2]
[336675958,1725011433007,-624.96,0.00023634,2]
[336675959,1725011433016,-385.36241942,0.0002364,2]
[336675960,1725011433027,-239.59758058,0.0002364,2]
[336675961,1725011433037,-144.79342062,0.00023646,2]
[336675962,1725011433048,-480.16657938,0.00023646,2]
[336675963,1725011433058,-624.96,0.00023653,2]
[336675964,1725011433068,-624.96,0.00023659,2]
[336675965,1725011433078,-624.96,0.00023665,2]
[336675966,1725011433088,-624.96,0.00023671,2]
[336675967,1725011433097,-1148.55588,0.0002423,2]
[336675968,1725011433107,-802.38171287,0.0002437,2]
[336675969,1725011433116,-3259.4517,0.0002437,2]
[336675970,1725011433126,-880.7932,0.0002437,2]
[336675971,1725011433141,-2500.0,0.0002437,2]
[336675972,1725011433150,-3047.3481,0.0002438,2]
[336675973,1725011433160,-7500.0,0.0002438,2]
[336675974,1725011433170,-1000.0,0.000244,2]
[336675975,1725011433182,-802.38171283,0.00024421,2]
[336675976,1725011433192,-3386.27557811,0.00024441,2]
[336675977,1725011433202,-170.68800697,0.00024441,2]
[336675978,1725011433213,-150.21144823,0.00024457,61]
[336675979,1725011433227,-3718.94,0.00024458,2]
[336675980,1725011433237,-13732.95681174,0.0002447,3]
[336675981,1725011433251,-1699.14757446,0.0002447,3]
[336675982,1725011433261,-386.87063074,0.0002447,2]
[336675983,1725011433271,-9590.18660518,0.0002447,3]
[336675984,1725011433284,-1559.20212666,0.0002447,3]
[336675985,1725011433295,-621.77146932,0.0002447,3]
[336675986,1725011433311,-582.57785601,0.0002447,3]
[336675987,1725011433323,-450.25,0.0002447,3]
[336675992,1725011438557,-4159.97519846,0.0002447,3]
[336675993,1725011438573,-292.46071786,0.0002447,3]
[336675994,1725011438669,-214225.14181951,0.0002447,3]
[336675995,1725011438679,-192081.349907,0.0002447,3]
[336675996,1725011438688,-802.38171283,0.00024472,2]
[336675997,1725011438698,-1345.20333866,0.00024477,2]
[336675998,1725011438707,-218.46652298,0.00024479,2]
[336675999,1725011438717,-1000.0,0.00024479,8]
[336676000,1725011438727,-518188.87405706,0.0002448,2]
[336676001,1725011438738,-25794.47568979,0.0002448,2]
[336676006,1725011438813,-80720.9969611,0.0002448,2]
[336676008,1725011438822,-151.0,0.0002448,7]